fUST/lending_fUST_20240805
["ID","MTS","AMOUNT","RATE_DAILY","PERIOD"]
[334149489,1722797441614,-500.0,0.00013698,2]
[334149490,1722797441625,-426.38,0.00013698,2]
[334149491,1722797441636,-500.0,0.00013698,2]
[334149492,1722797441647,-500.0,0.00013698,2]
[334149493,1722797441657,-500.0,0.00013698,2]
[334149494,1722797441667,-500.0,0.00013698,2]
[334149495,1722797441677,-500.0,0.00013698,2]
[334149496,1722797441688,-500.0,0.00013698,2]
[334149497,1722797441700,-500.0,0.00013698,2]
[334149498,1722797441712,-500.0,0.00013698,2]
[334149499,1722797441721,-500.0,0.00013698,2]
[334149500,1722797441731,-500.0,0.00013698,2]
[334149501,1722797441740,-861.76,0.00013698,2]
[334149502,1722797441749,-500.0,0.00013698,2]
[334149503,1722797441757,-500.0,0.00013698,2]
[334149504,1722797441766,-500.0,0.00013698,2]
[334149505,1722797441775,-500.0,0.00013698,2]
[334149506,1722797441786,-500.0,0.00013698,2]
[334149507,1722797441798,-500.0,0.00013698,2]
[334149508,1722797441809,-500.0,0.00013698,2]
[334149509,1722797441820,-350.0,0.00013698,2]
[334149510,1722797441833,-500.0,0.00013698,2]
[334149511,1722797441842,-552.98,0.00013698,2]
[334149512,1722797441852,-500.0,0.00013698,2]
[334149513,1722797441862,-500.0,0.00013698,2]
[334149514,1722797441872,-500.0,0.00013698,2]
[334149515,1722797441882,-2199.04,0.00013698,2]
[334149516,1722797441891,-500.0,0.00013698,2]
[334149517,1722797441900,-500.0,0.00013698,2]
[334149518,1722797441910,-572.71,0.00013698,2]
[334149519,1722797441920,-500.0,0.00013698,2]
[334149520,1722797441929,-1119.23,0.00013698,2]
[334149521,1722797441939,-1202.27,0.00013698,2]
[334149522,1722797441950,-1752.84,0.00013698,2]
[334149523,1722797441966,-515.26,0.00013698,2]
[334149524,1722797441982,-500.0,0.00013698,2]
[334149525,1722797441991,-500.0,0.00013698,2]
[334149526,1722797442002,-665.73,0.00013698,2]
[334149527,1722797442013,-500.0,0.00013698,2]
[334149528,1722797442024,-500.0,0.00013698,2]
[334149529,1722797442036,-500.0,0.00013698,2]
[334149530,1722797442046,-546.21282897,0.00013698,2]
[334149531,1722797442057,-500.0,0.00013698,2]
[334149532,1722797442073,-500.0,0.00013698,2]
[334149533,1722797442083,-500.0,0.00013698,2]
[334149534,1722797442094,-500.0,0.00013698,2]
[334149535,1722797442105,-500.0,0.00013698,2]
[334149536,1722797442116,-500.0,0.00013698,2]
[334149537,1722797442129,-500.0,0.00013698,2]
[334149538,1722797442138,-939.56,0.00013698,2]
[334149539,1722797442148,-500.0,0.00013698,2]
[334149540,1722797442159,-500.0,0.00013698,2]
[334149541,1722797442168,-500.0,0.00013698,2]
[334149542,1722797442178,-240.85,0.00013698,2]
[334149543,1722797442188,-500.0,0.00013698,2]
[334149544,1722797442198,-500.0,0.00013698,2]
[334149545,1722797442215,-500.0,0.00013698,2]
[334149546,1722797442225,-500.0,0.00013698,2]
[334149547,1722797442234,-500.0,0.00013698,2]
[334149548,1722797442244,-293.74101599,0.00013698,2]
[334149549,1722797442253,-500.0,0.00013698,2]
[334149550,1722797442264,-979.74,0.00013698,2]
[334149551,1722797442274,-500.0,0.00013698,2]
[334149552,1722797442284,-602.26,0.00013698,2]
[334149553,1722797442295,-500.0,0.00013698,2]
[334149554,1722797442306,-500.0,0.00013698,2]
[334149555,1722797442316,-500.0,0.00013698,2]
[334149556,1722797442325,-1941.31,0.00013698,2]
[334149557,1722797442335,-500.0,0.00013698,2]
[334149558,1722797442344,-500.0,0.00013698,2]
[334149559,1722797442354,-500.0,0.00013698,2]
[334149560,1722797442364,-500.0,0.00013698,2]
[334149561,1722797442373,-500.0,0.00013698,2]
[334149562,1722797442383,-500.0,0.00013698,2]
[334149563,1722797442393,-500.0,0.00013698,2]
[334149564,1722797442403,-2083.54,0.00013698,2]
[334149565,1722797442412,-500.0,0.00013698,2]
[334149566,1722797442422,-500.0,0.00013698,2]
[334149567,1722797442432,-500.0,0.00013698,2]
[334149568,1722797442441,-500.0,0.00013698,2]
[334149569,1722797442450,-500.0,0.00013698,2]
[334149570,1722797442469,-500.0,0.00013698,2]
[334149571,1722797442479,-500.0,0.00013698,2]
[334149572,1722797442488,-690.26,0.00013698,2]
[334149573,1722797442498,-326.03432267,0.00013698,2]
[334149574,1722797442507,-500.0,0.00013698,2]
[334149575,1722797442517,-500.0,0.00013698,2]
[334149576,1722797442526,-500.0,0.00013698,2]
[334149577,1722797442536,-500.0,0.00013698,2]
[334149578,1722797442546,-562.13835197,0.00013698,2]
[334149579,1722797442556,-500.0,0.00013698,2]
[334149580,1722797442566,-500.0,0.00013698,2]
[334149581,1722797442577,-228.181743,0.00013699,2]
[334149582,1722797442586,-3000.0,0.00013699,2]
[334149583,1722797442596,-194.5599409,0.00013699,2]
[334149584,1722797442606,-1152.0,0.00013837,2]
[334149585,1722797442615,-687.86686611,0.00013872,2]
[334149586,1722797442624,-10469.9076424,0.00013962,2]
[334149587,1722797442634,-265.56874859,0.00013971,2]
[334149588,1722797442643,-500.0,0.00013971,2]
[334149589,1722797442654,-500.0,0.00013971,2]
[334149590,1722797442664,-398.75286456,0.00013971,2]
[334149591,1722797442676,-500.0,0.00013971,2]
[334149592,1722797442686,-500.0,0.00013971,2]
[334149593,1722797442696,-500.0,0.00013971,2]
[334149594,1722797442714,-500.0,0.00013972,2]
[334149595,1722797442724,-500.0,0.00013972,2]
[334149596,1722797442733,-500.0,0.00013972,2]
[334149597,1722797442743,-500.0,0.00013972,2]
[334149598,1722797442754,-500.0,0.00013972,2]
[334149599,1722797442764,-500.0,0.00013972,2]
[334149601,1722797442773,-500.0,0.00013972,2]
[334149603,1722797442783,-500.0,0.00013972,2]
[334149604,1722797442792,-500.0,0.00013972,2]
[334149605,1722797442802,-861.76,0.00013972,2]
[334149606,1722797442811,-500.0,0.00013972,2]
[334149607,1722797442822,-500.0,0.00013972,2]
[334149608,1722797442832,-552.98,0.00013972,2]
[334149609,1722797442843,-500.0,0.00013972,2]
[334149610,1722797442855,-500.0,0.00013972,2]
[334149611,1722797442865,-500.0,0.00013972,2]
[334149612,1722797442875,-2199.04,0.00013972,2]
[334149615,1722797442886,-500.0,0.00013972,2]
[334149617,1722797442896,-468.50351792,0.00013972,2]
[334149619,1722797442906,-572.71,0.00013972,2]
[334149620,1722797442916,-500.0,0.00013972,2]
[334149621,1722797442926,-1119.23,0.00013972,2]
[334149622,1722797442935,-1202.27,0.00013972,2]
[334149623,1722797442946,-1752.84,0.00013972,2]
[334149624,1722797442959,-515.26,0.00013972,2]
[334149625,1722797442968,-500.0,0.00013972,2]
[334149626,1722797442978,-500.0,0.00013972,2]
[334149629,1722797442988,-665.73,0.00013972,2]
[334149632,1722797442997,-500.0,0.00013972,2]
[334149635,1722797443006,-500.0,0.00013972,2]
[334149639,1722797443015,-500.0,0.00013972,2]
[334149643,1722797443023,-500.0,0.00013972,2]
[334149646,1722797443033,-500.0,0.00013972,2]
[334149649,1722797443044,-500.0,0.00013972,2]
[334149652,1722797443054,-500.0,0.00013972,2]
[334149654,1722797443063,-500.0,0.00013972,2]
[334149656,1722797443072,-500.0,0.00013972,2]
[334149658,1722797443082,-500.0,0.00013972,2]
[334149661,1722797443092,-939.56,0.00013972,2]
[334149664,1722797443101,-500.0,0.00013972,2]
[334149667,1722797443111,-500.0,0.00013972,2]
[334149669,1722797443123,-500.0,0.00013972,2]
[334149672,1722797443134,-500.0,0.00013972,2]
[334149674,1722797443144,-500.0,0.00013972,2]
[334149676,1722797443154,-979.74,0.00013972,2]
[334149678,1722797443164,-602.26,0.00013972,2]
[334149680,1722797443175,-500.0,0.00013972,2]
[334149682,1722797443185,-1941.31,0.00013972,2]
[334149684,1722797443195,-500.0,0.00013972,2]
[334149685,1722797443207,-500.0,0.00013972,2]
[334149687,1722797443217,-2083.54,0.00013972,2]
[334149689,1722797443227,-500.0,0.00013972,2]
[334149690,1722797443236,-500.0,0.00013972,2]
[334149692,1722797443246,-500.0,0.00013972,2]
[334149694,1722797443255,-500.0,0.00013972,2]
[334149695,1722797443265,-690.26,0.00013972,2]
[334149696,1722797443274,-500.0,0.00013972,2]
[334149698,1722797443284,-500.0,0.00013972,2]
[334149699,1722797443293,-286.60806988,0.00014,2]
[334149700,1722797443303,-1091.57771247,0.00014,2]
[334149701,1722797443312,-687.86686611,0.00014146,2]
[334149702,1722797443323,-3809.53213609,0.00014185,2]
[334149703,1722797443332,-10469.9076424,0.00014236,2]
[334149705,1722797443343,-500.0,0.00014245,2]
[334149706,1722797443352,-500.0,0.00014246,2]
[334149707,1722797443362,-500.0,0.00014246,2]
[334149708,1722797443372,-500.0,0.00014246,2]
[334149709,1722797443381,-500.0,0.00014246,2]
[334149710,1722797443394,-247.86719694,0.00014246,2]
[334149711,1722797443404,-500.0,0.00014246,2]
[334149712,1722797443414,-500.0,0.00014246,2]
[334149713,1722797443424,-500.0,0.00014246,2]
[334149714,1722797443525,-361.96776128,0.00014246,2]
[334149715,1722797443693,-685.11,0.00013698,2]
[334149716,1722797443706,-625.22358413,0.00013972,2]
[334149717,1722797443718,-59.88641587,0.00013972,2]
[334149719,1722797443729,-138.03223872,0.00014246,2]
[334149721,1722797443741,-861.76,0.00014246,2]
[334149722,1722797443753,-500.0,0.00014246,2]
[334149723,1722797443763,-295.49912574,0.00014246,2]
[334149724,1722797443772,-552.98,0.00014246,2]
[334149725,1722797443781,-500.0,0.00014246,2]
[334149726,1722797443791,-500.0,0.00014246,2]
[334149727,1722797443800,-500.0,0.00014246,2]
[334149728,1722797443809,-500.0,0.00014246,2]
[334149729,1722797443819,-572.71,0.00014246,2]
[334149730,1722797443829,-500.0,0.00014246,2]
[334149731,1722797443840,-1119.23,0.00014246,2]
[334149732,1722797443851,-1202.27,0.00014246,2]
[334149733,1722797443860,-1752.84,0.00014246,2]
[334149734,1722797443870,-515.26,0.00014246,2]
[334149735,1722797443879,-500.0,0.00014246,2]
[334149736,1722797443889,-500.0,0.00014246,2]
[334149737,1722797443898,-665.73,0.00014246,2]
[334149738,1722797443907,-500.0,0.00014246,2]
[334149739,1722797443918,-500.0,0.00014246,2]
[334149740,1722797443927,-500.0,0.00014246,2]
[334149741,1722797443936,-249.16644494,0.00014246,2]
[334149742,1722797443947,-500.0,0.00014246,2]
[334149743,1722797443959,-500.0,0.00014246,2]
[334149744,1722797443970,-500.0,0.00014246,2]
[334149745,1722797443982,-500.0,0.00014246,2]
[334149746,1722797443992,-500.0,0.00014246,2]
[334149747,1722797444002,-500.0,0.00014246,2]
[334149748,1722797444012,-939.56,0.00014246,2]
[334149749,1722797444023,-500.0,0.00014246,2]
[334149750,1722797444033,-500.0,0.00014246,2]
[334149751,1722797444043,-500.0,0.00014246,2]
[334149752,1722797444054,-500.0,0.00014246,2]
[334149753,1722797444065,-500.0,0.00014246,2]
[334149754,1722797444076,-979.74,0.00014246,2]
[334149755,1722797444086,-602.26,0.00014246,2]
[334149756,1722797444099,-500.0,0.00014246,2]
[334149757,1722797444109,-1941.31,0.00014246,2]
[334149758,1722797444119,-500.0,0.00014246,2]
[334149759,1722797444129,-500.0,0.00014246,2]
[334149760,1722797444139,-2083.54,0.00014246,2]
[334149761,1722797444149,-500.0,0.00014246,2]
[334149762,1722797444159,-500.0,0.00014246,2]
[334149763,1722797444168,-500.0,0.00014246,2]
[334149764,1722797444178,-500.0,0.00014246,2]
[334149765,1722797444188,-690.26,0.00014246,2]
[334149766,1722797444198,-500.0,0.00014246,2]
[334149767,1722797444210,-500.0,0.00014246,2]
[334149768,1722797444220,-685.11,0.00014246,2]
[334149769,1722797444229,-732.770169,0.00014247,2]
[334149771,1722797444239,-1411.0,0.00014304,2]
[334149773,1722797444248,-413.8684072,0.00014404,2]
[334149775,1722797444258,-523.4427161,0.00014404,2]
[334149777,1722797444268,-294.2025256,0.00014404,2]
[334149778,1722797444278,-687.86686611,0.0001442,2]
[334149779,1722797444288,-500.0,0.00014509,2]
[334149780,1722797444297,-10469.9076424,0.0001451,2]
[334149781,1722797444307,-500.0,0.0001452,2]
[334149782,1722797444316,-372.14726748,0.0001452,2]
[334149783,1722797444326,-500.0,0.0001452,2]
[334149784,1722797444335,-500.0,0.0001452,2]
[334149785,1722797444345,-229.78890357,0.0001452,2]
[334149786,1722797444355,-500.0,0.0001452,2]
[334149787,1722797444366,-500.0,0.0001452,2]
[334149788,1722797444375,-474.14877187,0.0001452,2]
[334149789,1722797444385,-861.76,0.0001452,2]
[334149790,1722797444396,-500.0,0.0001452,2]
[334149791,1722797444407,-552.98,0.0001452,2]
[334149792,1722797444419,-500.0,0.0001452,2]
[334149793,1722797444428,-500.0,0.0001452,2]
[334149794,1722797444438,-500.0,0.0001452,2]
[334149795,1722797444448,-500.0,0.0001452,2]
[334149796,1722797444459,-572.71,0.0001452,2]
[334149797,1722797444468,-1119.23,0.0001452,2]
[334149798,1722797444478,-1202.27,0.0001452,2]
[334149799,1722797444488,-1752.84,0.0001452,2]
[334149800,1722797444498,-515.26,0.0001452,2]
[334149801,1722797444507,-500.0,0.0001452,2]
[334149802,1722797444516,-500.0,0.0001452,2]
[334149803,1722797444525,-665.73,0.0001452,2]
[334149804,1722797444534,-500.0,0.0001452,2]
[334149805,1722797444544,-500.0,0.0001452,2]
[334149806,1722797444554,-500.0,0.0001452,2]
[334149807,1722797444564,-500.0,0.0001452,2]
[334149808,1722797444575,-500.0,0.0001452,2]
[334149809,1722797444585,-500.0,0.0001452,2]
[334149810,1722797444595,-500.0,0.0001452,2]
[334149811,1722797444606,-500.0,0.0001452,2]
[334149812,1722797444616,-500.0,0.0001452,2]
[334149813,1722797444626,-939.56,0.0001452,2]
[334149814,1722797444637,-500.0,0.0001452,2]
[334149815,1722797444648,-500.0,0.0001452,2]
[334149816,1722797444658,-500.0,0.0001452,2]
[334149817,1722797444668,-500.0,0.0001452,2]
[334149818,1722797444678,-500.0,0.0001452,2]
[334149819,1722797444687,-979.74,0.0001452,2]
[334149820,1722797444697,-602.26,0.0001452,2]
[334149821,1722797444712,-500.0,0.0001452,2]
[334149822,1722797444724,-1941.31,0.0001452,2]
[334149823,1722797444734,-500.0,0.0001452,2]
[334149824,1722797444750,-426.34404815,0.0001452,2]
[334149825,1722797444764,-2083.54,0.0001452,2]
[334149826,1722797444777,-500.0,0.0001452,2]
[334149827,1722797444789,-500.0,0.0001452,2]
[334149828,1722797444801,-500.0,0.0001452,2]
[334149829,1722797444813,-500.0,0.0001452,2]
[334149830,1722797444829,-690.26,0.0001452,2]
[334149831,1722797444843,-500.0,0.0001452,2]
[334149832,1722797444855,-500.0,0.0001452,2]
[334149833,1722797444868,-685.11,0.0001452,2]
[334149834,1722797444881,-25306.76944926,0.00014538,2]
[334149835,1722797444895,-269.66609186,0.0001469,2]
[334149836,1722797444909,-154.74467129,0.0001469,2]
[334149837,1722797444924,-687.86686611,0.00014694,2]
[334149838,1722797444937,-10289.60848327,0.00014784,2]
[334149878,1722797446727,-180.29915913,0.00014784,2]
[334149879,1722797446741,-500.0,0.00014793,2]
[334149881,1722797446752,-100.26850055,0.00014794,2]
[334149883,1722797446764,-399.73149945,0.00014794,2]
[334149885,1722797446775,-500.0,0.00014794,2]
[334149887,1722797446787,-200.04168805,0.00014794,2]
[334149888,1722797446858,-299.95831195,0.00014794,2]
[334149889,1722797446869,-500.0,0.00014794,2]
[334149890,1722797446882,-500.0,0.00014794,2]
[334149891,1722797446895,-861.76,0.00014794,2]
[334149892,1722797446908,-500.0,0.00014794,2]
[334149893,1722797446922,-552.98,0.00014794,2]
[334149894,1722797446933,-500.0,0.00014794,2]
[334149895,1722797446946,-500.0,0.00014794,2]
[334149896,1722797446963,-500.0,0.00014794,2]
[334149897,1722797446975,-222.10004331,0.00014794,2]
[334149898,1722797446991,-277.89995669,0.00014794,2]
[334149899,1722797447003,-572.71,0.00014794,2]
[334149900,1722797447014,-713.38913831,0.00014794,2]
[334149901,1722797447027,-405.84086169,0.00014794,2]
[334149902,1722797447038,-651.52884331,0.00014794,2]
[334149903,1722797447051,-270.81688255,0.00014794,2]
[334149904,1722797447065,-279.92427414,0.00014794,2]
[334149905,1722797447076,-1752.84,0.00014794,2]
[334149906,1722797447086,-515.26,0.00014794,2]
[334149907,1722797447097,-500.0,0.00014794,2]
[334149908,1722797447108,-500.0,0.00014794,2]
[334149909,1722797447119,-665.73,0.00014794,2]
[334149910,1722797447130,-500.0,0.00014794,2]
[334149911,1722797447142,-500.0,0.00014794,2]
[334149912,1722797447153,-500.0,0.00014794,2]
[334149913,1722797447164,-500.0,0.00014794,2]
[334149914,1722797447175,-582.90192411,0.00014794,2]
[334149915,1722797447186,-500.0,0.00014794,2]
[334149916,1722797447197,-443.57292953,0.00014794,2]
[334150048,1722798634237,-300.0,9.998e-05,2]
[334150049,1722798634248,-300.0,9.998e-05,2]
[334150050,1722798634259,-663.67604883,9.999e-05,2]
[334150051,1722798634269,-155.20656649,9.999e-05,2]
[334150052,1722798634279,-519.59956575,9.999e-05,2]
[334150053,1722798634290,-523.06806918,9.999e-05,2]
[334150054,1722798634313,-174.52933502,9.999e-05,2]
[334150055,1722798634322,-309.1495329,9.999e-05,2]
[334150056,1722798634332,-200.22595135,9.999e-05,2]
[334150057,1722798634342,-201.4758121,9.999e-05,2]
[334150058,1722798634351,-154.85727986,9.999e-05,2]
[334150059,1722798634362,-156.8188046,9.999e-05,2]
[334150060,1722798634371,-154.77557542,9.999e-05,2]
[334150061,1722798634380,-165.53506923,9.999e-05,2]
[334150062,1722798634390,-300.99621399,9.999e-05,2]
[334150063,1722798634400,-154.77557542,9.999e-05,2]
[334150064,1722798634409,-413.91232311,9.999e-05,2]
[334150065,1722798634419,-176.26702348,9.999e-05,2]
[334150066,1722798634428,-156.61103376,9.999e-05,2]
[334150067,1722798634438,-533.92328189,9.999e-05,2]
[334150068,1722798634448,-603.79164827,9.999e-05,2]
[334150069,1722798634457,-294.12454179,0.0001,2]
[334150070,1722798634467,-24900.0,0.00010745,2]
[334150071,1722798634476,-250.0,0.00010874,2]
[334150072,1722798634486,-250.0,0.00010904,2]
[334150073,1722798634496,-250.0,0.00010934,2]
[334150074,1722798634505,-250.0,0.00010964,2]
[334150075,1722798634516,-250.0,0.00010994,2]
[334150076,1722798634526,-420.0,0.00010998,2]
[334150077,1722798634536,-250.0,0.00011024,2]
[334150078,1722798634545,-250.0,0.00011053,2]
[334150079,1722798634567,-250.0,0.00011083,2]
[334150080,1722798634577,-250.0,0.00011113,2]
[334150081,1722798634588,-250.0,0.00011143,2]
[334150082,1722798634597,-250.0,0.00011173,2]
[334150083,1722798634607,-250.0,0.00011203,2]
[334150084,1722798634616,-250.0,0.00011232,2]
[334150085,1722798634626,-250.0,0.00011262,2]
[334150086,1722798634637,-250.0,0.00011292,2]
[334150087,1722798634646,-250.0,0.00011322,2]
[334150088,1722798634656,-250.0,0.00011352,2]
[334150089,1722798634667,-250.0,0.00011382,2]
[334150090,1722798634677,-250.0,0.00011411,2]
[334150091,1722798634687,-250.0,0.00011441,2]
[334150092,1722798634698,-191.62470048,0.00012019,2]
[334150093,1722798634709,-203.67396826,0.00012019,2]
[334150094,1722798634720,-587.0,0.00012098,2]
[334150095,1722798634730,-3168.63237081,0.000129,2]
[334150096,1722798634739,-303.0,0.00013307,2]
[334150097,1722798634749,-1652.37126797,0.00013598,2]
[334150098,1722798634759,-2291.60556789,0.00013686,2]
[334150099,1722798634900,-20409.05596895,0.00013688,2]
[334150100,1722798634913,-15118.27148232,0.00013688,2]
[334150101,1722798634925,-2957.82427606,0.00013688,2]
[334150424,1722798643330,-694.1093999,9.999e-05,2]
[334150426,1722798643341,-34.1206001,9.999e-05,2]
[334150435,1722798643446,-508.95973687,9.999e-05,2]
[334150437,1722798643468,-5349.94026313,0.00013688,2]
[334150820,1722798647048,-53710.66608054,0.00013688,2]
[334150822,1722798647061,-4573.50400846,0.00013698,5]
[334150824,1722798647070,-216.64701091,0.00013698,2]
[334150826,1722798647079,-511.17279121,0.00013698,2]
[334150828,1722798647089,-500.0,0.00013698,2]
[334150830,1722798647098,-500.0,0.00013698,2]
[334150832,1722798647107,-500.0,0.00013698,2]
[334150834,1722798647116,-500.0,0.00013698,2]
[334150836,1722798647124,-208.00449981,0.00013698,2]
[334150837,1722798647133,-500.0,0.00013698,2]
[334150839,1722798647142,-500.0,0.00013698,2]
[334150841,1722798647151,-500.0,0.00013698,2]
[334150843,1722798647160,-500.0,0.00013698,2]
[334150845,1722798647169,-500.0,0.00013698,2]
[334150847,1722798647178,-392.18888643,0.00013698,2]
[334150849,1722798647187,-500.0,0.00013698,2]
[334150851,1722798647197,-500.0,0.00013698,2]
[334150853,1722798647206,-500.0,0.00013698,2]
[334150855,1722798647217,-500.0,0.00013698,2]
[334150857,1722798647226,-550.76616755,0.00013698,2]
[334150859,1722798647236,-500.0,0.00013698,2]
[334150860,1722798647245,-500.0,0.00013698,2]
[334150862,1722798647254,-500.0,0.00013698,2]
[334150864,1722798647263,-500.0,0.00013698,2]
[334150866,1722798647272,-597.72529334,0.00013698,2]
[334150868,1722798647282,-505.15552001,0.00013698,2]
[334150870,1722798647293,-500.0,0.00013698,2]
[334150872,1722798647308,-500.0,0.00013698,2]
[334150874,1722798647317,-500.0,0.00013698,2]
[334150876,1722798647326,-500.0,0.00013698,2]
[334150877,1722798647335,-500.0,0.00013698,2]
[334150879,1722798647344,-500.0,0.00013698,2]
[334150881,1722798647354,-503.08688821,0.00013698,2]
[334150883,1722798647363,-500.0,0.00013698,2]
[334150885,1722798647372,-500.0,0.00013698,2]
[334150887,1722798647382,-500.0,0.00013698,2]
[334150889,1722798647392,-500.0,0.00013698,2]
[334150891,1722798647401,-500.0,0.00013698,2]
[334150893,1722798647410,-500.0,0.00013698,2]
[334150895,1722798647419,-500.0,0.00013698,2]
[334150896,1722798647429,-500.0,0.00013698,2]
[334150898,1722798647438,-500.0,0.00013698,2]
[334150900,1722798647447,-500.0,0.00013698,2]
[334150902,1722798647456,-500.0,0.00013698,2]
[334150904,1722798647465,-511.27166137,0.00013698,2]
[334150906,1722798647474,-500.0,0.00013698,2]
[334150908,1722798647483,-500.0,0.00013698,2]
[334150910,1722798647493,-500.0,0.00013698,2]
[334150912,1722798647502,-544.64119726,0.00013698,2]
[334150914,1722798647511,-500.0,0.00013698,2]
[334150915,1722798647521,-500.0,0.00013698,2]
[334150917,1722798647530,-464.90049769,0.00013698,2]
[334150919,1722798647539,-484.50453269,0.00013698,2]
[334150921,1722798647548,-500.0,0.00013698,2]
[334150923,1722798647559,-501.63256543,0.00013698,2]
[334150925,1722798647569,-508.66921285,0.00013698,2]
[334150927,1722798647578,-500.0,0.00013698,2]
[334150929,1722798647589,-500.0,0.00013698,2]
[334150931,1722798647598,-500.0,0.00013698,2]
[334150933,1722798647608,-500.0,0.00013698,2]
[334150935,1722798647617,-500.0,0.00013698,2]
[334150937,1722798647627,-500.0,0.00013698,2]
[334150939,1722798647635,-500.0,0.00013698,2]
[334150940,1722798647644,-500.0,0.00013698,2]
[334150943,1722798647656,-500.0,0.00013698,2]
[334150944,1722798647665,-500.0,0.00013698,2]
[334150946,1722798647674,-500.0,0.00013698,2]
[334150948,1722798647684,-500.0,0.00013698,2]
[334150950,1722798647693,-193.38715633,0.00013698,2]
[334150952,1722798647702,-513.36467229,0.00013698,2]
[334150954,1722798647711,-430.85125548,0.00013698,2]
[334150956,1722798647721,-500.0,0.00013698,2]
[334150958,1722798647730,-500.0,0.00013698,2]
[334150960,1722798647739,-500.0,0.00013698,2]
[334150962,1722798647749,-500.0,0.00013698,2]
[334150964,1722798647759,-500.0,0.00013698,2]
[334150966,1722798647768,-500.0,0.00013698,2]
[334150968,1722798647777,-500.0,0.00013698,2]
[334150969,1722798647786,-500.0,0.00013698,2]
[334150971,1722798647795,-500.0,0.00013698,2]
[334150973,1722798647806,-500.0,0.00013698,2]
[334150975,1722798647815,-206.42538066,0.00013698,2]
[334150977,1722798647824,-500.0,0.00013698,2]
[334150979,1722798647833,-500.0,0.00013698,2]
[334150981,1722798647843,-500.0,0.00013698,2]
[334150983,1722798647852,-500.0,0.00013698,2]
[334150985,1722798647861,-500.0,0.00013698,2]
[334150986,1722798647870,-254.13446242,0.00013698,2]
[334150988,1722798647879,-297.03101558,0.00013698,2]
[334150990,1722798647889,-571.37000468,0.00013698,2]
[334150992,1722798647898,-500.0,0.00013698,2]
[334150994,1722798647907,-500.0,0.00013698,2]
[334150996,1722798647916,-500.0,0.00013698,2]
[334150998,1722798647925,-302.98947014,0.00013698,2]
[334151000,1722798647934,-500.0,0.00013698,2]
[334151002,1722798647943,-500.0,0.00013698,2]
[334151004,1722798647953,-500.0,0.00013698,2]
[334151005,1722798647962,-500.0,0.00013698,2]
[334151007,1722798647971,-500.0,0.00013698,2]
[334151009,1722798647980,-502.12221661,0.00013698,2]
[334151011,1722798647990,-500.0,0.00013698,2]
[334151013,1722798647998,-502.06925966,0.00013698,2]
[334151015,1722798648007,-526.94396494,0.00013698,2]
[334151017,1722798648017,-500.0,0.00013698,2]
[334151019,1722798648026,-500.0,0.00013698,2]
[334151021,1722798648035,-500.0,0.00013698,2]
[334151023,1722798648045,-500.0,0.00013698,2]
[334151025,1722798648054,-500.0,0.00013698,2]
[334151027,1722798648064,-500.0,0.00013698,2]
[334151029,1722798648074,-500.0,0.00013698,2]
[334151030,1722798648083,-500.0,0.00013698,2]